bitfinex/quotes_BTCUSD_20250114
["timestamp","ask_amount","ask_price","bid_price","bid_amount"]
[1736892076863,0.00727447,96645.0,96644.0,0.206944]
[1736892077266,0.00727447,96645.0,96644.0,0.2693875]
[1736892078367,0.00727447,96645.0,96644.0,0.206944]
[1736892078580,0.00827447,96645.0,96644.0,0.206944]
[1736892079592,0.00927447,96645.0,96644.0,0.206944]
[1736892080045,0.00827447,96645.0,96644.0,0.206944]
[1736892080845,0.00727447,96645.0,96644.0,0.206944]
[1736892091079,0.00727447,96645.0,96644.0,0.207944]
[1736892091687,0.00727447,96645.0,96644.0,0.001]
[1736892092006,0.1295105,96645.0,96644.0,0.003]
[1736892092732,0.1295105,96645.0,96644.0,0.002]
[1736892092956,0.00827447,96645.0,96644.0,0.002]
[1736892093157,0.001,96645.0,96644.0,0.002]
[1736892093357,0.0008531,96646.0,96644.0,0.002]
[1736892093560,0.0008531,96646.0,96645.0,0.206942]
[1736892095569,0.0008531,96646.0,96645.0,0.207942]
[1736892096147,0.0008531,96646.0,96645.0,0.39617378]
[1736892096379,0.0008531,96646.0,96645.0,0.39513912]
[1736892096981,0.0008531,96646.0,96645.0,0.42743686]
[1736892097365,0.0008531,96646.0,96645.0,0.39513912]
[1736892097565,0.0008531,96646.0,96645.0,0.58076815]
[1736892098631,0.0008531,96646.0,96645.0,0.53466395]
[1736892099010,0.0008531,96646.0,96645.0,0.39513912]
[1736892101615,0.0008531,96646.0,96645.0,0.53466395]
[1736892102225,0.0008531,96646.0,96645.0,0.39513912]
[1736892103120,0.0008531,96646.0,96645.0,0.53466395]
[1736892103721,0.0008531,96646.0,96645.0,0.39513912]
[1736892105051,0.00079986,96646.0,96645.0,0.39513912]
[1736892106059,0.00079986,96646.0,96645.0,0.48814699]
[1736892108854,0.00079986,96646.0,96645.0,0.39513912]
[1736892109923,0.00079986,96646.0,96645.0,0.48814803]
[1736892110798,0.00079986,96646.0,96645.0,0.39513912]
[1736892113354,0.00079986,96646.0,96645.0,0.48815006]
[1736892114081,0.00079986,96646.0,96645.0,0.39513912]
[1736892115249,0.00079986,96646.0,96645.0,0.31216892]
[1736892116624,0.02016326,96646.0,96645.0,0.31216892]
[1736892116832,0.02016326,96646.0,96645.0,0.001]
[1736892117673,0.00079986,96646.0,96645.0,0.001]
[1736892118016,0.00079986,96646.0,96645.0,0.00179151]
[1736892121879,0.02016004,96646.0,96645.0,0.00179151]
[1736892124694,0.10276004,96646.0,96645.0,0.00179151]
[1736892124899,0.02016004,96646.0,96645.0,0.00179151]
[1736892127029,0.00079986,96646.0,96645.0,0.00179151]
[1736892128479,0.00079986,96646.0,96645.0,0.00279151]
[1736892138626,0.0201772,96646.0,96645.0,0.00279151]
[1736892142760,0.0201772,96646.0,96645.0,0.06551366]
[1736892142967,0.0201772,96646.0,96645.0,0.24727525]
[1736892143166,0.0201772,96646.0,96645.0,0.24624058]
[1736892143393,0.00079986,96646.0,96645.0,0.24624058]
[1736892144619,0.00079986,96646.0,96645.0,0.25650431]
[1736892149364,0.00079986,96646.0,96645.0,0.34951525]
[1736892150362,0.00079986,96646.0,96645.0,0.25650431]
[1736892151784,0.00079986,96646.0,96645.0,0.19378216]
[1736892152083,0.00079986,96646.0,96645.0,0.19481674]
[1736892155665,0.00079986,96646.0,96645.0,0.11831674]
[1736892157965,0.00079986,96646.0,96645.0,0.01305524]
[1736892158169,0.00079986,96646.0,96645.0,0.00279151]
[1736892161216,0.00785929,96646.0,96645.0,0.00279151]
[1736892161615,0.00785929,96646.0,96645.0,0.00179151]
[1736892162057,0.00179986,96646.0,96645.0,0.00179151]
[1736892162261,0.08149986,96646.0,96645.0,0.00179151]
[1736892162477,0.08959586,96646.0,96645.0,0.00179151]
[1736892162627,0.13994275,96646.0,96645.0,0.00179151]
[1736892163495,0.14094275,96646.0,96645.0,0.00179151]
[1736892163699,0.18884275,96646.0,96645.0,0.00179151]
[1736892165987,0.13849586,96646.0,96645.0,0.00179151]
[1736892175024,0.39272278,96646.0,96645.0,0.00179151]
[1736892175232,0.39168675,96646.0,96645.0,0.00179151]
[1736892175842,0.4110063,96646.0,96645.0,0.00179151]
[1736892176587,0.4100063,96646.0,96645.0,0.00179151]
[1736892176791,0.51423322,96646.0,96645.0,0.00179151]
[1736892176991,0.4130063,96646.0,96645.0,0.00179151]
[1736892177341,0.4200063,96646.0,96645.0,0.00279151]
[1736892177536,0.4292325,96646.0,96645.0,0.00179151]
[1736892177980,0.4362325,96646.0,96645.0,0.00279151]
[1736892178184,0.10230558,96646.0,96645.0,0.00279151]
[1736892178382,0.05440558,96646.0,96645.0,0.08139151]
[1736892178741,0.03417938,96646.0,96645.0,0.08139151]
[1736892179103,0.01985983,96646.0,96645.0,0.08139151]
[1736892179622,0.01485983,96646.0,96645.0,0.19606531]
[1736892179808,0.00779986,96646.0,96645.0,0.24259986]
[1736892180015,0.00179986,96646.0,96645.0,0.24056531]
[1736892180223,0.00179986,96646.0,96645.0,0.33917939]
[1736892180381,0.00779986,96646.0,96645.0,0.34017939]
[1736892180584,0.00079986,96646.0,96645.0,0.33917939]
[1736892181007,0.00079986,96646.0,96645.0,0.34417939]
[1736892181993,0.00179986,96646.0,96645.0,0.34417939]
[1736892182414,0.00079986,96646.0,96645.0,0.34417939]
[1736892182854,0.00079986,96646.0,96645.0,0.34617939]
[1736892183063,0.00079986,96646.0,96645.0,0.43926042]
[1736892183850,0.00079986,96646.0,96645.0,0.34617939]
[1736892190575,0.00079986,96646.0,96645.0,0.24756531]
[1736892190749,0.00079986,96646.0,96645.0,0.20206531]
[1736892191331,0.00079986,96646.0,96645.0,0.20309987]
[1736892210526,0.00079986,96646.0,96645.0,0.23537482]
[1736892210730,0.00079986,96646.0,96645.0,0.20206531]
[1736892210934,0.00079986,96646.0,96645.0,0.20309982]
[1736892211396,0.00079986,96646.0,96645.0,0.23539831]
[1736892211599,0.00079986,96646.0,96645.0,0.2343638]
[1736892212212,0.00079986,96646.0,96645.0,0.33859072]
[1736892213184,0.00079986,96646.0,96645.0,0.20206531]
[1736892213417,0.00079986,96646.0,96645.0,0.12346531]
[1736892214780,0.00079986,96646.0,96645.0,0.12449989]
[1736892215405,0.00079986,96646.0,96645.0,0.12346531]
[1736892215608,0.02018139,96646.0,96645.0,0.12346531]
[1736892216969,0.00079986,96646.0,96645.0,0.12346531]
[1736892217379,0.00079986,96646.0,96645.0,0.12449989]
[1736892217719,0.00079986,96646.0,96645.0,0.12346531]
[1736892218123,0.00079986,96646.0,96645.0,0.12449989]
[1736892220062,0.00079986,96646.0,96645.0,0.15684674]
[1736892222939,0.00079986,96646.0,96645.0,0.24992777]
[1736892223131,0.00079986,96646.0,96645.0,0.24889319]
[1736892223381,0.00079986,96646.0,96645.0,0.21654634]
[1736892223581,0.00079986,96646.0,96645.0,0.35312208]
[1736892223800,0.00079986,96646.0,96645.0,0.26004105]
[1736892224259,0.00079986,96646.0,96645.0,0.49274364]
[1736892225244,0.00079986,96646.0,96645.0,0.26004105]
[1736892226449,0.00079986,96646.0,96645.0,0.15581413]
[1736892226648,0.00079986,96646.0,96645.0,0.1568487]
[1736892230150,0.00079986,96646.0,96645.0,0.38977762]
[1736892230300,0.00079986,96646.0,96645.0,0.38874305]
[1736892231083,0.00079986,96646.0,96645.0,0.15581413]
[1736892231305,0.00079986,96646.0,96645.0,0.26107562]
[1736892231460,0.00079986,96646.0,96645.0,0.26004105]
[1736892232992,0.00079986,96646.0,96645.0,0.15581413]
[1736892235001,0.00079986,96646.0,96645.0,0.2383487]
[1736892235209,0.00079986,96646.0,96645.0,0.23731413]
[1736892239705,0.00079986,96646.0,96645.0,0.38731413]
[1736892262609,0.00079986,96646.0,96645.0,0.51031413]
[1736892262830,8.6e-07,96646.0,96645.0,0.94308416]
[1736892263242,8.6e-07,96646.0,96645.0,2.44308416]
[1736892263730,0.0008534,96662.0,96659.0,0.1]
[1736892263925,0.1182423,96663.0,96662.0,0.5987]
[1736892264145,0.0975523,96663.0,96662.0,0.97482848]
[1736892264924,0.0768623,96663.0,96662.0,0.97482848]
[1736892265295,0.0354823,96663.0,96662.0,1.05632848]
[1736892265501,1e-07,96666.0,96665.0,0.3545]
[1736892265704,1e-07,96666.0,96665.0,0.59530266]
[1736892266706,1e-07,96666.0,96665.0,2.09530266]
[1736892266907,1e-07,96666.0,96665.0,2.10430266]
[1736892267693,1e-07,96666.0,96665.0,0.60430266]
[1736892267895,1e-07,96666.0,96665.0,0.60930266]
[1736892268093,1e-07,96666.0,96665.0,0.70930266]
[1736892268331,1e-07,96666.0,96665.0,1.03500266]
[1736892270793,1e-07,96666.0,96665.0,1.05530317]
[1736892272959,1e-07,96666.0,96665.0,1.02295435]
[1736892273580,1e-07,96666.0,96665.0,2.52295435]
[1736892274188,1e-07,96666.0,96665.0,2.55517343]
[1736892274357,1e-07,96666.0,96665.0,1.59977343]
[1736892277777,1e-07,96666.0,96665.0,1.60156515]
[1736892279595,1e-07,96666.0,96665.0,3.10156515]
[1736892283555,0.0813,96700.0,96677.0,0.782574]
[1736892283698,0.0813,96700.0,96677.0,1.00005366]
[1736892284378,0.0813,96700.0,96677.0,1.09276095]
[1736892285471,0.0813,96700.0,96699.0,0.206827]
[1736892285670,0.08144882,96700.0,96699.0,0.206827]
[1736892285851,0.08735163,96700.0,96699.0,0.206827]
[1736892286857,0.08835163,96700.0,96699.0,0.206827]
[1736892287258,0.08935163,96700.0,96699.0,0.206827]
[1736892287460,0.08835163,96700.0,96699.0,0.206827]
[1736892289337,0.08820483,96700.0,96699.0,0.206827]
[1736892290114,0.08820483,96700.0,96699.0,0.22734338]
[1736892290534,0.08230202,96700.0,96699.0,0.22734338]
[1736892293102,0.08230202,96700.0,96699.0,0.23777018]
[1736892293526,0.00100202,96700.0,96699.0,0.40714082]
[1736892293928,0.00100202,96700.0,96699.0,0.68014082]
[1736892295185,0.00100202,96700.0,96699.0,1.00584082]
[1736892295523,0.00100202,96700.0,96699.0,1.01184082]
[1736892295939,0.00100202,96700.0,96699.0,1.01384082]
[1736892296296,0.00100202,96700.0,96699.0,1.04408399]
[1736892296827,0.00100202,96700.0,96699.0,1.04708399]
[1736892297013,0.00087753,96700.0,96699.0,1.04708399]
[1736892300278,0.00087753,96700.0,96699.0,0.92408399]
[1736892300529,0.07667753,96700.0,96699.0,0.8266971]
[1736892301215,0.07667753,96700.0,96699.0,0.5009971]
[1736892303151,0.00087753,96700.0,96699.0,0.5009971]
[1736892307142,0.0793,96706.0,96702.0,0.15]
[1736892307342,0.0793,96706.0,96704.0,0.15]
[1736892308686,0.0793,96706.0,96705.0,0.206814]
[1736892311278,0.0793,96706.0,96705.0,0.210814]
[1736892311579,0.0793,96706.0,96705.0,0.212814]
[1736892313539,0.000853,96708.0,96705.0,0.419628]
[1736892314500,0.000853,96708.0,96705.0,0.413628]
[1736892314697,0.000853,96708.0,96705.0,0.414628]
[1736892314879,0.000853,96708.0,96705.0,0.417628]
[1736892315847,0.01706727,96708.0,96705.0,0.417628]
[1736892316186,0.000853,96708.0,96705.0,0.417628]
[1736892316592,0.000853,96708.0,96705.0,0.210814]
[1736892316791,0.0477,96706.0,96705.0,0.210814]
[1736892316990,0.05380977,96706.0,96705.0,0.210814]
[1736892317747,0.05380977,96706.0,96705.0,0.206814]
[1736892317951,0.05380977,96706.0,96705.0,0.207814]
[1736892318317,0.05380977,96706.0,96705.0,0.206814]
[1736892318734,0.05380977,96706.0,96705.0,0.207814]
[1736892321099,0.002353,96708.0,96705.0,0.414627]
[1736892321304,0.00605524,96706.0,96705.0,0.207813]
[1736892321507,0.002353,96708.0,96705.0,0.207813]
[1736892321939,0.002353,96708.0,96705.0,0.414626]
[1736892322145,0.002353,96708.0,96705.0,0.413626]
[1736892322752,0.002353,96708.0,96704.0,0.206814]
[1736892323140,0.00602882,96707.0,96704.0,0.206814]
[1736892323479,0.002353,96708.0,96704.0,0.206814]
[1736892323885,0.00602875,96707.0,96704.0,0.206814]
[1736892324086,0.0477,96706.0,96704.0,0.206814]
[1736892324613,0.0796,96704.0,96700.0,0.00062247]
[1736892324833,0.00706505,96703.0,96700.0,0.00062247]
[1736892325547,0.08,96702.0,96700.0,0.00062247]
[1736892325717,0.00103603,96701.0,96700.0,0.00062247]
[1736892326070,0.00702338,96701.0,96700.0,0.00062247]
[1736892327824,0.2402503,96701.0,96700.0,0.00062247]
[1736892328182,0.24221427,96701.0,96700.0,0.00062247]
[1736892328590,0.206825,96700.0,96699.0,0.00179214]
[1736892328791,0.44005192,96700.0,96699.0,0.00179214]
[1736892328993,0.44599945,96700.0,96699.0,0.00179214]
[1736892329746,0.68970916,96700.0,96699.0,0.00179214]
[1736892330350,0.55022637,96700.0,96699.0,0.00179214]
[1736892330883,0.64305795,96700.0,96699.0,0.00179214]
[1736892331094,0.86863103,96700.0,96699.0,0.00179214]
[1736892331290,0.86963103,96700.0,96699.0,0.00179214]
[1736892331501,0.88785065,96700.0,96699.0,0.00179214]
[1736892331702,0.79501907,96700.0,96699.0,0.00179214]
[1736892332501,0.77879945,96700.0,96699.0,0.00179214]
[1736892332902,0.88302637,96700.0,96699.0,0.00179214]
[1736892333547,0.98302637,96700.0,96699.0,0.00179214]
[1736892334650,0.98002637,96700.0,96699.0,0.00179214]
[1736892334858,0.98602637,96700.0,96699.0,0.00279214]
[1736892335057,0.98602637,96700.0,96699.0,0.00379214]
[1736892335058,0.98702637,96700.0,96699.0,0.00379214]
[1736892335195,0.98002637,96700.0,96699.0,0.00179214]
[1736892335395,0.98002637,96700.0,96699.0,0.00279214]
[1736892335604,1.00324541,96700.0,96699.0,0.00379214]
[1736892335808,0.98702637,96700.0,96699.0,0.00379214]
[1736892339162,0.98787977,96700.0,96699.0,0.00379214]
[1736892340287,1.0040987,96700.0,96699.0,0.00379214]
[1736892341049,0.80567178,96700.0,96699.0,0.00379214]
[1736892341250,0.78945285,96700.0,96699.0,0.00379214]
[1736892341429,1.03945285,96700.0,96699.0,0.00379214]
[1736892342322,1.03845285,96700.0,96699.0,0.00279214]
[1736892343080,1.03245285,96700.0,96699.0,0.00179214]
[1736892343291,1.03245285,96700.0,96699.0,0.00279214]
[1736892343292,1.03845285,96700.0,96699.0,0.00279214]
[1736892344300,1.15467231,96700.0,96699.0,0.00279214]
[1736892344538,1.16067231,96700.0,96699.0,0.00379214]
[1736892346647,1.26489923,96700.0,96699.0,0.00379214]
[1736892349746,1.16067231,96700.0,96699.0,0.00379214]
[1736892352442,1.18367231,96700.0,96699.0,0.00379214]
[1736892354393,1.17772478,96700.0,96699.0,0.00379214]
[1736892356271,1.1986067,96700.0,96699.0,0.00379214]
[1736892357043,1.1986067,96700.0,96699.0,7.5e-07]
[1736892357229,0.61237,96679.0,96678.0,0.00179151]
[1736892357464,0.81659692,96679.0,96678.0,0.00194033]
[1736892358898,0.82259692,96679.0,96678.0,0.00294033]
[1736892359536,0.82859692,96679.0,96678.0,0.00294033]
[1736892360468,0.97259692,96679.0,96678.0,0.00194033]
[1736892360693,1.08582384,96679.0,96678.0,0.00294033]
[1736892360918,1.20882384,96679.0,96678.0,0.00294033]
[1736892361159,1.19982384,96679.0,96678.0,0.00194033]
[1736892361390,1.20882384,96679.0,96678.0,0.00294033]
[1736892361588,1.22504576,96679.0,96678.0,0.00294033]
[1736892362426,1.21930596,96679.0,96678.0,0.00294033]
[1736892363333,1.21780596,96679.0,96678.0,0.00294033]
[1736892369517,1.31063754,96679.0,96678.0,0.00294033]
[1736892370262,1.21780596,96679.0,96678.0,0.00294033]
[1736892371241,1.23402774,96679.0,96678.0,0.00294033]
[1736892371478,1.37351053,96679.0,96678.0,0.00294033]
[1736892372116,1.23402774,96679.0,96678.0,0.00294033]
[1736892372858,1.21780596,96679.0,96678.0,0.00294033]
[1736892375796,1.40332477,96679.0,96678.0,0.00294033]
[1736892375972,1.4195465,96679.0,96678.0,0.00294033]
[1736892376899,1.40332477,96679.0,96678.0,0.00294033]
[1736892378950,1.12919785,96679.0,96678.0,0.00294033]
[1736892379096,1.22919785,96679.0,96678.0,0.00294033]
[1736892379469,1.00039785,96679.0,96678.0,0.00294033]
[1736892379764,0.85039785,96679.0,96678.0,0.07864033]
[1736892379959,0.84571573,96679.0,96678.0,0.07864033]
[1736892380381,0.66019692,96679.0,96678.0,0.07864033]
[1736892381377,0.76442384,96679.0,96678.0,0.07864033]
[1736892381577,0.78064382,96679.0,96678.0,0.07864033]
[1736892381934,0.76442384,96679.0,96678.0,0.07864033]
[1736892384449,0.66019692,96679.0,96678.0,0.07864033]
[1736892384827,0.66105052,96679.0,96678.0,0.07864033]
[1736892394702,0.65525052,96679.0,96678.0,0.07864033]
[1736892395055,0.65525052,96679.0,96678.0,0.00294033]
[1736892397832,0.90525052,96679.0,96678.0,0.00294033]
[1736892398029,0.80525052,96679.0,96678.0,0.00294033]
[1736892398250,0.80525052,96679.0,96678.0,0.07864033]
[1736892399357,0.90947744,96679.0,96678.0,0.07864033]
[1736892399759,0.90947744,96679.0,96678.0,0.00294033]
[1736892400194,0.91527744,96679.0,96678.0,0.00294033]
[1736892401996,0.81105052,96679.0,96678.0,0.00294033]
[1736892404830,0.90382696,96679.0,96678.0,0.00294033]
[1736892405033,0.81105052,96679.0,96678.0,0.00294033]
[1736892406146,0.81105052,96679.0,96678.0,0.00224033]
[1736892407303,0.82727133,96679.0,96678.0,0.00224033]
[1736892407502,0.93149825,96679.0,96678.0,0.00224033]
[1736892407916,1.07080453,96679.0,96678.0,0.00224033]
[1736892408345,1.19380453,96679.0,96678.0,0.00224033]
[1736892408677,1.05449825,96679.0,96678.0,0.00224033]
[1736892409551,1.15449825,96679.0,96678.0,0.00224033]
[1736892409971,0.82727133,96679.0,96678.0,0.00224033]
[1736892410158,0.81105052,96679.0,96678.0,0.00224033]
[1736892415345,0.90393183,96679.0,96678.0,0.00224033]
[1736892416310,0.99681314,96679.0,96678.0,0.00224033]
[1736892417144,0.81105052,96679.0,96678.0,0.00224033]
[1736892417387,0.91527744,96679.0,96678.0,0.00224033]
[1736892417792,1.01527744,96679.0,96678.0,0.00224033]
[1736892418995,1.11527744,96679.0,96678.0,0.00224033]
[1736892419382,1.18487744,96679.0,96678.0,0.00224033]
[1736892419582,1.18487744,96679.0,96678.0,3.3e-07]
[1736892419794,1.28411385,96679.0,96678.0,3.3e-07]
[1736892420018,1.27831385,96679.0,96678.0,3.3e-07]
[1736892420227,0.456897,96666.0,96665.0,5e-08]
[1736892420423,0.56688392,96666.0,96665.0,5e-08]
[1736892421770,0.57588392,96666.0,96665.0,0.00100005]
[1736892421976,0.47412392,96666.0,96665.0,0.00100005]
[1736892422181,0.375657,96666.0,96665.0,0.00100005]
[1736892422388,0.369897,96666.0,96665.0,0.08420005]
[1736892422748,0.219897,96666.0,96665.0,0.08420005]
[1736892422944,0.210897,96666.0,96665.0,0.08320005]
[1736892423521,0.219897,96666.0,96665.0,0.08320005]
[1736892423633,0.31512392,96666.0,96665.0,0.08320005]
[1736892423833,0.32012392,96666.0,96665.0,0.08320005]
[1736892424113,0.32412392,96666.0,96665.0,0.08320005]
[1736892424628,0.32012392,96666.0,96665.0,0.08320005]
[1736892425398,0.219897,96666.0,96665.0,0.08320005]
[1736892429351,0.31284733,96666.0,96665.0,0.08320005]
[1736892431661,0.219897,96666.0,96665.0,0.08320005]
[1736892436970,0.215897,96666.0,96665.0,0.08320005]
[1736892437235,0.210897,96666.0,96665.0,0.08320005]
[1736892437918,0.211897,96666.0,96665.0,0.08320005]
[1736892446679,0.005,96666.0,96665.0,0.08320005]
[1736892446877,0.005,96666.0,96665.0,0.12890005]
[1736892448750,0.004,96666.0,96665.0,0.12890005]
[1736892449516,0.206894,96668.0,96665.0,0.12890005]
[1736892449760,0.001,96666.0,96665.0,0.12890005]
[1736892450009,0.206894,96668.0,96665.0,0.12890005]
[1736892450540,0.002,96666.0,96665.0,0.12890005]
[1736892450765,0.414788,96668.0,96665.0,0.12890005]
[1736892450964,0.004,96666.0,96665.0,0.12890005]
[1736892452861,0.413788,96668.0,96665.0,0.12890005]
[1736892453072,0.002,96666.0,96665.0,0.12890005]
[1736892453359,0.006,96666.0,96665.0,0.12890005]
[1736892453670,0.004,96666.0,96665.0,0.12890005]
[1736892456727,0.006,96666.0,96665.0,0.12890005]
[1736892466355,0.07797842,96666.0,96665.0,5e-08]
[1736892466679,0.07901445,96666.0,96665.0,5e-08]
[1736892468867,0.17196478,96666.0,96665.0,5e-08]
[1736892469649,0.07901445,96666.0,96665.0,5e-08]
[1736892471201,0.17199129,96666.0,96665.0,5e-08]
[1736892472138,0.00703603,96666.0,96665.0,5e-08]
[1736892473500,0.11126295,96666.0,96665.0,5e-08]
[1736892473710,0.50068844,96666.0,96665.0,5e-08]
[1736892474039,0.49965241,96666.0,96665.0,5e-08]
[1736892474542,0.36022692,96666.0,96665.0,5e-08]
[1736892474684,0.56445384,96666.0,96665.0,5e-08]
[1736892475175,0.66255384,96666.0,96665.0,5e-08]
[1736892475843,0.65655384,96666.0,96665.0,5e-08]
[1736892475996,0.71455384,96666.0,96665.0,5e-08]
[1736892476414,0.70355384,96666.0,96665.0,5e-08]
[1736892476668,0.71255384,96666.0,96665.0,5e-08]
[1736892476844,1.05035384,96666.0,96665.0,5e-08]
[1736892477047,1.05611384,96666.0,96665.0,5e-08]
[1736892479366,1.05611384,96666.0,96645.0,0.00179151]
[1736892479552,1.05611384,96666.0,96640.0,5.3e-07]
[1736892479553,0.373,96641.0,96640.0,5.3e-07]
[1736892479724,0.81278692,96641.0,96640.0,5.3e-07]
[1736892479974,0.88788692,96641.0,96640.0,5.3e-07]
[1736892480523,0.207015,96611.0,96610.0,0.00179214]
[1736892480724,0.31803795,96611.0,96610.0,0.00179214]
[1736892480923,0.31700192,96611.0,96610.0,0.00228859]
[1736892482837,0.32300192,96611.0,96610.0,0.00228859]
[1736892484873,0.33697612,96611.0,96610.0,0.00228859]
[1736892487702,0.32300192,96611.0,96610.0,0.00228859]
[1736892491754,0.32294832,96611.0,96610.0,0.00228859]
[1736892495463,0.31718832,96611.0,96610.0,0.00228859]
[1736892498297,0.46718832,96611.0,96610.0,0.00228859]
[1736892498798,0.56718832,96611.0,96610.0,0.00228859]
[1736892498995,0.79441524,96611.0,96610.0,0.00228859]
[1736892499226,0.84221524,96611.0,96610.0,5.9e-07]
[1736892499427,0.84021524,96611.0,96610.0,5.9e-07]
[1736892499626,0.84221524,96611.0,96610.0,5.9e-07]
[1736892499842,0.85121524,96611.0,96610.0,5.9e-07]
[1736892500252,0.84221524,96611.0,96610.0,5.9e-07]
[1736892500414,0.85121524,96611.0,96610.0,5.9e-07]
[1736892500615,0.84221524,96611.0,96610.0,5.9e-07]
[1736892501050,0.84521524,96611.0,96610.0,5.9e-07]
[1736892501451,0.85221524,96611.0,96610.0,5.9e-07]
[1736892501673,0.74798832,96611.0,96610.0,5.9e-07]
[1736892501877,1.07078832,96611.0,96610.0,5.9e-07]
[1736892502078,1.07778832,96611.0,96610.0,5.9e-07]
[1736892505882,1.09402077,96611.0,96610.0,5.9e-07]
[1736892508738,1.09816877,96611.0,96610.0,5.9e-07]
[1736892508968,1.20239569,96611.0,96610.0,5.9e-07]
[1736892510022,1.20239569,96611.0,96610.0,0.00179378]
[1736892510310,1.20324959,96611.0,96610.0,0.00179378]
[1736892518373,1.20330159,96611.0,96610.0,0.00179378]
[1736892519088,1.19430159,96611.0,96610.0,0.00179378]
[1736892519501,1.19630159,96611.0,96610.0,0.00179378]
[1736892520002,1.20330159,96611.0,96610.0,0.00179378]
[1736892522548,1.29617005,96611.0,96610.0,0.00179378]
[1736892523587,1.34260428,96611.0,96610.0,0.00179378]
[1736892524423,1.38903851,96611.0,96610.0,0.00179378]
[1736892525096,1.20330159,96611.0,96610.0,0.00179378]
[1736892526816,1.20256717,96611.0,96610.0,0.00179378]
[1736892527214,1.20261517,96611.0,96610.0,0.00179378]
[1736892529692,1.48122055,96611.0,96610.0,0.00179378]
[1736892530303,1.20261517,96611.0,96610.0,0.00179378]
[1736892530974,1.09838825,96611.0,96610.0,0.00179378]
[1736892531108,1.05058825,96611.0,96610.0,0.00179378]
[1736892534161,1.04644025,96611.0,96610.0,0.00179378]
[1736892539627,1.04644025,96611.0,96610.0,7.8e-07]
[1736892541478,1.03944025,96611.0,96610.0,7.8e-07]
[1736892541678,1.15166717,96611.0,96610.0,7.8e-07]
[1736892542095,1.14366717,96611.0,96610.0,7.8e-07]
[1736892542301,0.35,96608.0,96607.0,9.2e-07]
[1736892542502,0.47722692,96608.0,96607.0,0.00014982]
[1736892543803,0.48622692,96608.0,96607.0,0.00014982]
[1736892544006,0.49120112,96608.0,96607.0,0.00014982]
[1736892544449,0.49820112,96608.0,96607.0,0.00014982]
[1736892544656,0.50720112,96608.0,96607.0,0.00014982]
[1736892544956,0.50105512,96608.0,96607.0,0.00014982]
[1736892545318,0.50905512,96608.0,96607.0,0.00014982]
[1736892545728,0.83885512,96608.0,96607.0,8.2e-07]
[1736892546221,0.83085512,96608.0,96607.0,8.2e-07]
[1736892546450,0.35,96604.0,96603.0,9.6e-07]
[1736892546629,0.58145384,96604.0,96603.0,9.6e-07]
[1736892547850,0.59045384,96604.0,96603.0,9.6e-07]
[1736892548800,0.48622692,96604.0,96603.0,9.6e-07]
[1736892549016,0.26898692,96604.0,96603.0,0.08190096]
[1736892549144,0.26898692,96604.0,96603.0,0.12890096]
[1736892549383,0.016,96604.0,96603.0,0.12890096]
[1736892550188,0.007,96604.0,96603.0,0.12890096]
[1736892550444,0.009,96604.0,96603.0,0.12890096]
[1736892550856,0.1861069,96605.0,96603.0,0.12890096]
[1736892551074,0.1861069,96605.0,96604.0,0.0819]
[1736892551469,0.000854,96608.0,96604.0,0.0819]
[1736892551859,0.000854,96608.0,96605.0,0.047]
[1736892552058,0.000854,96608.0,96606.0,0.0819]
[1736892552643,0.002854,96608.0,96606.0,0.0819]
[1736892553854,0.003854,96608.0,96606.0,0.0819]
[1736892554072,0.001854,96608.0,96606.0,0.0819]
[1736892554271,0.000854,96608.0,96606.0,0.0819]
[1736892554578,0.001854,96608.0,96606.0,0.0819]
[1736892554983,0.001854,96608.0,96606.0,0.0829]
[1736892556791,0.001854,96608.0,96607.0,0.332624]
[1736892556971,0.0009539,96611.0,96608.0,0.207021]
[1736892557178,0.0009539,96611.0,96610.0,0.332617]
[1736892558287,0.0009539,96611.0,96610.0,0.43684392]
[1736892558699,0.0008537,96640.0,96631.0,0.1256]
[1736892558902,0.00134954,96640.0,96633.0,0.0788]
[1736892560536,0.00534954,96640.0,96636.0,0.1256]
[1736892560737,0.00534954,96640.0,96639.0,0.0788]
[1736892560940,0.00634954,96640.0,96639.0,0.3335896]
[1736892561148,0.00634954,96640.0,96639.0,0.38660996]
[1736892561348,0.00576,96669.0,96639.0,0.05405496]
[1736892561558,0.00030852,96668.0,96651.0,0.1256]
[1736892561776,0.00030852,96668.0,96653.0,0.0788]
[1736892561982,0.00030852,96668.0,96654.0,0.00103449]
[1736892562185,0.00030852,96668.0,96655.0,0.07983449]
[1736892562333,0.00030852,96668.0,96656.0,0.206919]
[1736892562535,0.00330852,96668.0,96657.0,0.0788]
[1736892562974,0.00630852,96668.0,96657.0,0.0788]
[1736892563175,0.00330852,96668.0,96657.0,0.0788]
[1736892563559,0.00630852,96668.0,96657.0,0.0788]
[1736892563781,0.00330852,96668.0,96657.0,0.0788]
[1736892563995,0.00030852,96668.0,96657.0,0.0788]
[1736892564142,0.00130852,96668.0,96657.0,0.0788]
[1736892564799,0.00030852,96668.0,96657.0,0.0788]
[1736892564943,0.00130852,96668.0,96657.0,0.0788]
[1736892565346,0.00330852,96668.0,96657.0,0.0788]
[1736892569810,0.00330852,96668.0,96658.0,0.206915]
[1736892570194,0.00330852,96668.0,96659.0,0.0788]
[1736892570395,0.00416242,96668.0,96659.0,0.0788]
[1736892570640,0.00316242,96668.0,96659.0,0.0788]
[1736892571180,0.00416242,96668.0,96659.0,0.0788]
[1736892571395,0.00316242,96668.0,96659.0,0.0788]
[1736892571774,0.00216242,96668.0,96659.0,0.285712]
[1736892572163,0.00516242,96668.0,96659.0,0.285712]
[1736892572343,0.00516242,96668.0,96659.0,0.206912]
[1736892572543,0.00516242,96668.0,96661.0,0.285708]
[1736892573765,0.00516242,96668.0,96661.0,0.0788]
[1736892573969,0.00416242,96668.0,96661.0,0.07983443]
[1736892574328,0.00516242,96668.0,96661.0,0.07983443]
[1736892574895,0.00216242,96668.0,96661.0,0.07983443]
[1736892575072,0.00516242,96668.0,96661.0,0.07983443]
[1736892581995,0.00516242,96668.0,96666.0,0.0788]
[1736892582199,0.00516242,96668.0,96665.0,0.206899]
[1736892582200,0.00516242,96668.0,96667.0,0.33352934]
[1736892582423,0.00516242,96668.0,96667.0,0.332495]
[1736892582946,0.00216242,96668.0,96667.0,0.332495]
[1736892583517,0.00116242,96668.0,96667.0,0.332495]
[1736892583914,0.00216242,96668.0,96667.0,0.334495]
[1736892585232,0.00216242,96668.0,96667.0,0.337495]
[1736892585460,0.00216242,96668.0,96667.0,0.4133541]
[1736892587231,0.00216242,96668.0,96667.0,0.51758102]
[1736892588513,0.0008536,96679.0,96667.0,0.43878102]
[1736892588664,0.0008536,96679.0,96677.0,0.289474]
[1736892589918,0.0008536,96679.0,96677.0,0.290474]
[1736892591325,0.0008536,96679.0,96677.0,0.291474]
[1736892592388,0.0008536,96679.0,96677.0,0.32370672]